[Event "29th Czech Open-Rapid 2018"]
[Site "Pardubice"]
[Date "2018.07.18"]
[Round "2"]
[White "Gomes, Mary Ann"]
[Black "Lalic, Bogdan"]
[Result "1/2-1/2"]
[ECO "B30"]
[WhiteElo "2284"]
[BlackElo "2394"]
[Annotator "NA"]
[PlyCount "64"]
[EventDate "2018.07.18"]
[EventType "swiss"]
[EventCountry "CZE"]
[SourceTitle "playchess.com"]
[Source "ChessBase"]
[SourceQuality "1"]
[TimeControl "900+10"]

1. Nf3 {[%emt 0:00:00]} c5 {[%emt 0:00:00]} 2. e4 {[%emt 0:00:00]} Nc6 {[%emt 0:00:00]} 3. Bb5 {[%emt 0:00:01]} Nf6 {[%emt 0:00:17]} 4. Nc3 {[%emt 0:00:29]} Qc7 {[%emt 0:00:16]} 5. O-O {[%emt 0:00:08]} Nd4 {[%emt 0:00:10]} 6. Bc4 {[%emt 0:00:52]} Ng4 {[%emt 0:00:22]} 7. g3 {[%emt 0:02:56]} Nxf3+ {[%emt 0:00:06]} 8. Qxf3 {[%emt 0:00:01]} Ne5 {[%emt 0:00:08]} 9. Qe2 {[%emt 0:00:42]} e6 {[%emt 0:00:07]} 10. f4 {[%emt 0:00:13]} Nxc4 {[%emt 0:00:07]} 11. Qxc4 {[%emt 0:00:02]} a6 {[%emt 0:00:21]} 12. a4 {[%emt 0:00:05]} b6 {[%emt 0:00:19]} 13. d4 {[%emt 0:00:44]} Bb7 {[%emt 0:00:13]} 14. d5 {[%emt 0:02:25]} Be7 {[%emt 0:00:18]} 15. f5 {[%emt 0:00:40]} exf5 {[%emt 0:00:26]} 16. Rxf5 {[%emt 0:01:12]} d6 {[%emt 0:00:20]} 17. e5 {[%emt 0:00:18]} O-O {[%emt 0:00:22]} 18. exd6 {[%emt 0:02:45]} Bxd6 {[%emt 0:00:09]} 19. Ne4 {[%emt 0:00:02]} Be5 {[%emt 0:00:45]} 20. Bf4 {[%emt 0:01:10]} Bxf4 {[%emt 0:00:06]} 21. Rxf4 {[%emt 0:00:03]} Qe5 {[%emt 0:00:08]} 22. Rd1 {[%emt 0:00:43]} Rad8 {[%emt 0:00:36]} 23. Nc3 {[%emt 0:00:04]} f5 {[%emt 0:00:53]} 24. Rf2 {[%emt 0:00:22]} Qd6 {[%emt 0:00:33]} 25. Re2 {[%emt 0:00:24]} Bc8 {[%emt 0:00:09]} 26. Qf4 {[%emt 0:00:17]} h6 {[%emt 0:00:28]} 27. h4 {[%emt 0:00:40]} Qxf4 {[%emt 0:00:21]} 28. gxf4 {[%emt 0:00:02]} Rd6 {[%emt 0:00:02]} 29. h5 {[%emt 0:00:15]} Bd7 {[%emt 0:00:05]} 30. Rde1 {[%emt 0:00:05]} b5 {[%emt 0:00:04]} 31. axb5 {[%emt 0:00:19]} axb5 {[%emt 0:00:01]} 32. Re5 {[%emt 0:00:08]} Rd8 1/2-1/2

[Event "29th Czech Open-Rapid 2018"]
[Site "Pardubice"]
[Date "2018.07.18"]
[Round "2"]
[White "Rosko, Lubos"]
[Black "Kusa, Jakub"]
[Result "0-1"]
[ECO "C82"]
[WhiteElo "2279"]
[BlackElo "2061"]
[Annotator "NA"]
[PlyCount "46"]
[EventDate "2018.07.18"]
[EventType "swiss"]
[EventCountry "CZE"]
[SourceTitle "playchess.com"]
[Source "ChessBase"]
[SourceQuality "1"]
[TimeControl "900+10"]

1. e4 {[%emt 0:00:00]} e5 {[%emt 0:00:00]} 2. Nf3 {[%emt 0:00:00]} Nc6 {[%emt 0:00:00]} 3. Bb5 {[%emt 0:00:01]} a6 {[%emt 0:00:04]} 4. Ba4 {[%emt 0:00:03]} Nf6 {[%emt 0:00:05]} 5. O-O {[%emt 0:00:03]} Nxe4 {[%emt 0:00:10]} 6. d4 {[%emt 0:00:38]} b5 {[%emt 0:00:04]} 7. Bb3 {[%emt 0:00:02]} d5 {[%emt 0:00:05]} 8. dxe5 {[%emt 0:00:13]} Be6 {[%emt 0:00:01]} 9. c3 {[%emt 0:00:14]} Bc5 {[%emt 0:00:09]} 10. Nbd2 {[%emt 0:00:56]} O-O {[%emt 0:00:09]} 11. Bc2 {[%emt 0:00:56]} Nxf2 {[%emt 0:00:11]} 12. Rxf2 {[%emt 0:00:06]} f6 {[%emt 0:00:02]} 13. Nb3 {[%emt 0:03:39]} Bxf2+ {[%emt 0:00:38]} 14. Kxf2 {[%emt 0:00:03]} fxe5 {[%emt 0:00:11]} 15. Kg1 {[%emt 0:00:10]} Bg4 {[%emt 0:01:27]} 16. h3 {[%emt 0:03:59]} Bxf3 {[%emt 0:02:36]} 17. gxf3 {[%emt 0:00:01]} e4 {[%emt 0:01:25]} 18. fxe4 {[%emt 0:00:48]} Qh4 {[%emt 0:00:58]} 19. Qxd5+ {[%emt 0:02:48]} Kh8 {[%emt 0:00:04]} 20. Bf4 {[%emt 0:01:47]} Rxf4 {[%emt 0:01:21]} 21. Qd2 {[%emt 0:00:19]} Raf8 {[%emt 0:00:28]} 22. Nd4 {[%emt 0:00:25]} Nxd4 {[%emt 0:00:26]} 23. cxd4 {[%emt 0:00:11]} Rf2 {[%emt 0:00:11]} 0-1

[Event "29th Czech Open-Rapid 2018"]
[Site "Pardubice"]
[Date "2018.07.18"]
[Round "2"]
[White "Kutynec, Vladimir"]
[Black "Roskova, Katerina"]
[Result "1/2-1/2"]
[ECO "E95"]
[WhiteElo "2273"]
[BlackElo "1950"]
[Annotator "NA"]
[PlyCount "91"]
[EventDate "2018.07.18"]
[EventType "swiss"]
[EventCountry "CZE"]
[SourceTitle "playchess.com"]
[Source "ChessBase"]
[SourceQuality "1"]
[TimeControl "900+10"]

1. Nf3 {[%emt 0:00:00]} Nf6 {[%emt 0:00:00]} 2. c4 {[%emt 0:00:00]} g6 {[%emt 0:00:05]} 3. Nc3 {[%emt 0:00:00]} Bg7 {[%emt 0:00:09]} 4. e4 {[%emt 0:00:00]} d6 {[%emt 0:00:32]} 5. d4 {[%emt 0:00:04]} O-O {[%emt 0:00:14]} 6. Be2 {[%emt 0:00:02]} Nbd7 {[%emt 0:00:08]} 7. O-O {[%emt 0:00:15]} e5 {[%emt 0:00:04]} 8. Re1 {[%emt 0:00:08]} c6 {[%emt 0:00:26]} 9. Bf1 {[%emt 0:00:09]} Re8 {[%emt 0:00:22]} 10. d5 {[%emt 0:00:13]} Qc7 {[%emt 0:00:13]} 11. h3 {[%emt 0:00:57]} a5 {[%emt 0:00:15]} 12. Bg5 {[%emt 0:02:59]} Nc5 {[%emt 0:01:01]} 13. Qd2 {[%emt 0:00:42]} cxd5 {[%emt 0:01:07]} 14. Bxf6 {[%emt 0:00:57]} Bxf6 {[%emt 0:00:29]} 15. Nxd5 {[%emt 0:00:02]} Qd8 {[%emt 0:00:10]} 16. Nxf6+ {[%emt 0:03:00]} Qxf6 {[%emt 0:00:01]} 17. Rad1 {[%emt 0:00:19]} Bxh3 {[%emt 0:01:16]} 18. Qxd6 {[%emt 0:00:08]} Qxd6 {[%emt 0:00:16]} 19. Rxd6 {[%emt 0:00:01]} Bg4 {[%emt 0:00:06]} 20. Rd5 {[%emt 0:00:04]} Bxf3 {[%emt 0:00:16]} 21. Rxc5 {[%emt 0:00:05]} Bg4 {[%emt 0:00:09]} 22. f3 {[%emt 0:00:11]} Bd7 {[%emt 0:00:09]} 23. Rd5 {[%emt 0:02:41]} Bc6 {[%emt 0:00:05]} 24. Rd2 {[%emt 0:00:02]} Kf8 {[%emt 0:00:23]} 25. Red1 {[%emt 0:00:23]} Ke7 {[%emt 0:00:26]} 26. Kf2 {[%emt 0:00:02]} Red8 {[%emt 0:00:03]} 27. Ke3 {[%emt 0:00:05]} Rxd2 {[%emt 0:00:35]} 28. Rxd2 {[%emt 0:00:02]} Rd8 {[%emt 0:00:18]} 29. c5 {[%emt 0:00:46]} Rxd2 {[%emt 0:01:42]} 30. Kxd2 {[%emt 0:00:02]} f5 {[%emt 0:00:10]} 31. exf5 {[%emt 0:00:21]} gxf5 {[%emt 0:00:03]} 32. a3 {[%emt 0:00:19]} Ke6 {[%emt 0:00:30]} 33. Kc3 {[%emt 0:00:49]} h5 {[%emt 0:01:00]} 34. b4 {[%emt 0:00:56]} axb4+ {[%emt 0:00:08]} 35. axb4 {[%emt 0:00:01]} h4 {[%emt 0:00:08]} 36. b5 {[%emt 0:00:14]} Bd5 {[%emt 0:00:07]} 37. Bc4 {[%emt 0:01:01]} e4 {[%emt 0:01:09]} 38. fxe4 {[%emt 0:01:45]} fxe4 {[%emt 0:00:02]} 39. c6 {[%emt 0:00:09]} bxc6 {[%emt 0:00:37]} 40. bxc6 {[%emt 0:00:13]} Bxc4 {[%emt 0:00:24]} 41. Kxc4 {[%emt 0:00:08]} Kd6 {[%emt 0:00:08]} 42. Kd4 {[%emt 0:00:01]} Kxc6 {[%emt 0:00:57]} 43. Kxe4 {[%emt 0:00:01]} Kd6 {[%emt 0:00:26]} 44. Kf5 {[%emt 0:00:02]} h3 {[%emt 0:00:04]} 45. gxh3 {[%emt 0:00:02]} Ke7 {[%emt 0:00:02]} 46. h4 1/2-1/2

[Event "29th Czech Open-Rapid 2018"]
[Site "Pardubice"]
[Date "2018.07.18"]
[Round "2"]
[White "Mirzoeva, Elmira"]
[Black "Zdrazil, Tomas"]
[Result "1-0"]
[ECO "A45"]
[WhiteElo "2249"]
[BlackElo "2065"]
[Annotator "NA"]
[PlyCount "70"]
[EventDate "2018.07.18"]
[EventType "swiss"]
[EventCountry "CZE"]
[SourceTitle "playchess.com"]
[Source "ChessBase"]
[SourceQuality "1"]
[TimeControl "900+10"]

1. d4 {[%emt 0:00:00]} Nf6 {[%emt 0:00:00]} 2. Bf4 {[%emt 0:00:00]} c5 {[%emt 0:01:04]} 3. e3 {[%emt 0:00:01]} Qb6 {[%emt 0:00:08]} 4. Nc3 {[%emt 0:00:19]} cxd4 {[%emt 0:00:53]} 5. exd4 {[%emt 0:00:08]} d5 {[%emt 0:04:00]} 6. Nb5 {[%emt 0:00:24]} Na6 {[%emt 0:00:05]} 7. a4 {[%emt 0:00:24]} e6 {[%emt 0:00:37]} 8. Nf3 {[%emt 0:00:26]} Be7 {[%emt 0:00:35]} 9. a5 {[%emt 0:00:30]} Qd8 {[%emt 0:00:19]} 10. h3 {[%emt 0:00:05]} O-O {[%emt 0:01:12]} 11. Bd3 {[%emt 0:00:15]} Bb4+ {[%emt 0:00:41]} 12. Bd2 {[%emt 0:01:49]} Be7 {[%emt 0:00:05]} 13. c3 {[%emt 0:00:10]} Nc7 {[%emt 0:00:31]} 14. Na3 {[%emt 0:00:05]} Nce8 {[%emt 0:00:38]} 15. O-O {[%emt 0:00:07]} Nd6 {[%emt 0:00:02]} 16. Nc2 {[%emt 0:00:09]} Bd7 {[%emt 0:00:27]} 17. Qe2 {[%emt 0:00:07]} a6 {[%emt 0:00:04]} 18. b3 {[%emt 0:00:12]} Rc8 {[%emt 0:00:47]} 19. c4 {[%emt 0:00:38]} Nde4 {[%emt 0:01:36]} 20. Be1 {[%emt 0:00:12]} Bd6 {[%emt 0:01:12]} 21. Ne5 {[%emt 0:00:56]} Qc7 {[%emt 0:00:25]} 22. Nxd7 {[%emt 0:01:58]} Qxd7 {[%emt 0:00:22]} 23. c5 {[%emt 0:00:17]} Bb8 {[%emt 0:00:02]} 24. b4 {[%emt 0:02:59]} Qc7 {[%emt 0:01:04]} 25. g3 {[%emt 0:00:04]} h5 {[%emt 0:00:19]} 26. h4 {[%emt 0:00:43]} e5 {[%emt 0:01:29]} 27. Rd1 {[%emt 0:02:00]} Rfe8 {[%emt 0:00:11]} 28. Bxe4 {[%emt 0:00:46]} Nxe4 {[%emt 0:00:01]} 29. Qxh5 {[%emt 0:00:12]} exd4 {[%emt 0:00:06]} 30. Nxd4 {[%emt 0:00:05]} Nxg3 {[%emt 0:00:31]} 31. fxg3 {[%emt 0:00:33]} Rxe1 {[%emt 0:00:02]} 32. Rfxe1 {[%emt 0:01:12]} Qxg3+ {[%emt 0:00:02]} 33. Kf1 {[%emt 0:00:00]} Qh3+ {[%emt 0:00:19]} 34. Ke2 {[%emt 0:00:09]} Bf4 {[%emt 0:00:33]} 35. Qf3 {[%emt 0:00:20]} Bh6 {[%emt 0:00:16]} 1-0

[Event "29th Czech Open-Rapid 2018"]
[Site "Pardubice"]
[Date "2018.07.18"]
[Round "2"]
[White "Nikologorsky, Matfei"]
[Black "Balazec, Ludovit"]
[Result "1-0"]
[ECO "B92"]
[WhiteElo "2222"]
[BlackElo "1991"]
[Annotator "NA"]
[PlyCount "71"]
[EventDate "2018.07.18"]
[EventType "swiss"]
[EventCountry "CZE"]
[SourceTitle "playchess.com"]
[Source "ChessBase"]
[SourceQuality "1"]
[TimeControl "900+10"]

1. e4 {[%emt 0:00:00]} c5 {[%emt 0:00:00]} 2. Nf3 {[%emt 0:00:00]} d6 {[%emt 0:00:00]} 3. d4 {[%emt 0:00:00]} cxd4 {[%emt 0:00:00]} 4. Nxd4 {[%emt 0:00:00]} Nf6 {[%emt 0:00:00]} 5. Nc3 {[%emt 0:00:02]} a6 {[%emt 0:00:00]} 6. Be2 {[%emt 0:00:15]} Nbd7 {[%emt 0:00:04]} 7. a4 {[%emt 0:00:06]} e6 {[%emt 0:00:10]} 8. O-O {[%emt 0:00:07]} Be7 {[%emt 0:00:02]} 9. Be3 {[%emt 0:00:13]} O-O {[%emt 0:00:04]} 10. f4 {[%emt 0:00:21]} Qc7 {[%emt 0:00:14]} 11. Bf3 {[%emt 0:00:44]} Nb6 {[%emt 0:02:04]} 12. g4 {[%emt 0:00:42]} Nc4 {[%emt 0:00:04]} 13. Bc1 {[%emt 0:00:02]} Rd8 {[%emt 0:02:09]} 14. g5 {[%emt 0:02:20]} Ne8 {[%emt 0:01:07]} 15. Nce2 {[%emt 0:00:05]} e5 {[%emt 0:00:20]} 16. Nf5 {[%emt 0:00:35]} Bxf5 {[%emt 0:01:03]} 17. exf5 {[%emt 0:00:01]} exf4 {[%emt 0:00:44]} 18. g6 {[%emt 0:01:02]} Qc5+ {[%emt 0:00:25]} 19. Kh1 {[%emt 0:00:01]} Qxf5 {[%emt 0:00:08]} 20. gxf7+ {[%emt 0:00:01]} Kh8 {[%emt 0:01:09]} 21. fxe8=Q+ {[%emt 0:00:11]} Rxe8 {[%emt 0:00:01]} 22. Bxf4 {[%emt 0:00:42]} Nxb2 {[%emt 0:01:05]} 23. Qd5 {[%emt 0:01:02]} Qxd5 {[%emt 0:01:36]} 24. Bxd5 {[%emt 0:00:01]} Bf6 {[%emt 0:00:32]} 25. Ng3 {[%emt 0:00:05]} Rac8 {[%emt 0:00:56]} 26. Ne4 {[%emt 0:00:42]} Rxc2 {[%emt 0:00:39]} 27. Nxf6 {[%emt 0:01:36]} gxf6 {[%emt 0:00:03]} 28. Rae1 {[%emt 0:00:19]} Ree2 {[%emt 0:02:32]} 29. Rxe2 {[%emt 0:00:32]} Rxe2 {[%emt 0:00:01]} 30. Bxb7 {[%emt 0:00:38]} Nd3 {[%emt 0:00:53]} 31. Bxa6 {[%emt 0:00:17]} Nxf4 {[%emt 0:01:07]} 32. Bxe2 {[%emt 0:00:02]} Nxe2 {[%emt 0:00:01]} 33. Rxf6 {[%emt 0:00:04]} Nc3 {[%emt 0:00:22]} 34. a5 {[%emt 0:00:04]} Ne4 {[%emt 0:00:09]} 35. Re6 {[%emt 0:00:06]} d5 {[%emt 0:00:09]} 36. Rxe4 {[%emt 0:00:05]} 1-0

[Event "29th Czech Open-Rapid 2018"]
[Site "Pardubice"]
[Date "2018.07.18"]
[Round "2"]
[White "Balint, Vilmos"]
[Black "Hajek, Jiri"]
[Result "0-1"]
[ECO "A05"]
[WhiteElo "2220"]
[BlackElo "2081"]
[Annotator "NA"]
[PlyCount "88"]
[EventDate "2018.07.18"]
[EventType "swiss"]
[EventCountry "CZE"]
[SourceTitle "playchess.com"]
[Source "ChessBase"]
[SourceQuality "1"]
[TimeControl "900+10"]

1. Nf3 {[%emt 0:00:00]} Nf6 {[%emt 0:00:00]} 2. g3 {[%emt 0:00:00]} g6 {[%emt 0:00:00]} 3. Bg2 {[%emt 0:00:00]} Bg7 {[%emt 0:00:00]} 4. O-O {[%emt 0:00:00]} O-O {[%emt 0:00:00]} 5. c4 {[%emt 0:00:00]} d6 {[%emt 0:00:00]} 6. d4 {[%emt 0:00:00]} Bg4 {[%emt 0:00:02]} 7. Nc3 {[%emt 0:00:17]} Nfd7 {[%emt 0:00:16]} 8. Qb3 {[%emt 0:00:21]} Qc8 {[%emt 0:00:21]} 9. Bg5 {[%emt 0:00:09]} Nc6 {[%emt 0:01:46]} 10. d5 {[%emt 0:00:35]} Nc5 {[%emt 0:00:02]} 11. Qc2 {[%emt 0:00:14]} Bxf3 {[%emt 0:00:23]} 12. dxc6 {[%emt 0:00:07]} Bxg2 {[%emt 0:00:33]} 13. Kxg2 {[%emt 0:00:01]} bxc6 {[%emt 0:01:14]} 14. Bxe7 {[%emt 0:00:09]} Re8 {[%emt 0:00:00]} 15. Bg5 {[%emt 0:00:04]} Qg4 {[%emt 0:00:03]} 16. Bf4 {[%emt 0:00:16]} Ne6 {[%emt 0:00:18]} 17. Be3 {[%emt 0:01:00]} Qxc4 {[%emt 0:00:24]} 18. Rac1 {[%emt 0:00:05]} c5 {[%emt 0:02:34]} 19. Qd2 {[%emt 0:00:08]} Nd4 {[%emt 0:00:43]} 20. b3 {[%emt 0:00:23]} Qa6 {[%emt 0:00:21]} 21. Rfe1 {[%emt 0:00:08]} Re6 {[%emt 0:01:34]} 22. f3 {[%emt 0:02:22]} Rae8 {[%emt 0:00:39]} 23. Nd5 {[%emt 0:00:24]} Qb7 {[%emt 0:00:53]} 24. Nxc7 {[%emt 0:00:49]} Rxe3 {[%emt 0:00:54]} 25. Nxe8 {[%emt 0:00:01]} Rxe8 {[%emt 0:00:25]} 26. e4 {[%emt 0:00:01]} f5 {[%emt 0:00:17]} 27. Qd3 {[%emt 0:00:14]} fxe4 {[%emt 0:00:45]} 28. fxe4 {[%emt 0:00:13]} Rf8 {[%emt 0:00:53]} 29. Rc4 {[%emt 0:01:00]} Qf7 {[%emt 0:00:34]} 30. Rf1 {[%emt 0:00:02]} Qxf1+ 31. Qxf1 {[%emt 0:00:00]} Rxf1 {[%emt 0:00:05]} 32. Kxf1 {[%emt 0:00:01]} a5 {[%emt 0:00:48]} 33. Kg2 {[%emt 0:00:14]} Kf7 {[%emt 0:00:02]} 34. Rc1 {[%emt 0:00:03]} Ke6 {[%emt 0:00:02]} 35. Rf1 {[%emt 0:00:03]} Nc2 {[%emt 0:00:10]} 36. Rf2 {[%emt 0:00:11]} Nb4 {[%emt 0:00:09]} 37. a3 {[%emt 0:00:13]} Nd3 {[%emt 0:00:06]} 38. Rf1 {[%emt 0:00:09]} Bb2 {[%emt 0:00:37]} 39. Rf8 {[%emt 0:00:16]} Bxa3 {[%emt 0:00:05]} 40. Rh8 {[%emt 0:00:01]} Nc1 {[%emt 0:00:34]} 41. Rxh7 {[%emt 0:00:07]} Nxb3 {[%emt 0:00:02]} 42. Rg7 {[%emt 0:00:00]} Kf6 {[%emt 0:00:06]} 43. Rd7 {[%emt 0:00:02]} c4 {[%emt 0:00:02]} 44. Rc7 {[%emt 0:00:01]} Nc5 {[%emt 0:00:07]} 0-1

[Event "29th Czech Open-Rapid 2018"]
[Site "Pardubice"]
[Date "2018.07.18"]
[Round "2"]
[White "Bente, Bjoern"]
[Black "Hasangatin, Ramil"]
[Result "1/2-1/2"]
[ECO "B01"]
[WhiteElo "2219"]
[BlackElo "2497"]
[Annotator "ChessBase"]
[PlyCount "81"]
[EventDate "2018.07.18"]
[EventType "swiss"]
[EventCountry "CZE"]
[SourceTitle "playchess.com"]
[Source "ChessBase"]
[SourceQuality "1"]
[TimeControl "900+10"]

1. e4 {[%emt 0:00:00]} d5 {[%emt 0:00:00]} 2. exd5 {[%emt 0:00:00]} Qxd5 {[%emt 0:00:00]} 3. Nc3 {[%emt 0:00:00]} Qd6 {[%emt 0:00:00]} 4. d4 {[%emt 0:00:00]} Nf6 {[%emt 0:00:00]} 5. Nf3 {[%emt 0:00:05]} c6 {[%emt 0:00:00]} 6. g3 {[%emt 0:00:06]} Bf5 {[%emt 0:00:08]} 7. Bg2 {[%emt 0:00:05]} e6 {[%emt 0:00:01]} 8. O-O {[%emt 0:00:24]} Be7 {[%emt 0:00:40]} 9. Bf4 {[%emt 0:00:15]} Qd8 {[%emt 0:00:03]} 10. Nh4 {[%emt 0:00:35]} Bg4 {[%emt 0:00:18]} 11. Qd2 {[%emt 0:00:07]} Nd5 {[%emt 0:00:11]} 12. Nxd5 {[%emt 0:00:01]} cxd5 {[%emt 0:00:01]} 13. Nf3 {[%emt 0:00:09]} Bxf3 {[%emt 0:00:55]} 14. Bxf3 {[%emt 0:00:03]} Nc6 {[%emt 0:00:01]} 15. b3 {[%emt 0:00:33]} Bf6 {[%emt 0:00:10]} 16. Be3 {[%emt 0:00:05]} Rc8 {[%emt 0:00:38]} 17. Rac1 {[%emt 0:00:01]} O-O {[%emt 0:01:59]} 18. Rfd1 {[%emt 0:00:12]} Qa5 {[%emt 0:01:01]} 19. c4 {[%emt 0:00:50]} Qxd2 {[%emt 0:01:12]} 20. Rxd2 {[%emt 0:00:02]} dxc4 {[%emt 0:00:09]} 21. bxc4 {[%emt 0:00:05]} Rfd8 {[%emt 0:00:26]} 22. Rcd1 {[%emt 0:01:12]} b6 {[%emt 0:01:45]} 23. c5 {[%emt 0:02:00]} Na5 {[%emt 0:01:16]} 24. Be2 {[%emt 0:00:44]} bxc5 {[%emt 0:02:17]} 25. dxc5 {[%emt 0:00:03]} Rxd2 {[%emt 0:00:02]} 26. Rxd2 {[%emt 0:00:01]} Rc7 {[%emt 0:00:11]} 27. Bb5 {[%emt 0:01:18]} Nc6 {[%emt 0:03:17]} 28. Rd6 {[%emt 0:01:17]} Nb4 {[%emt 0:00:02]} 29. Rd7 {[%emt 0:01:17]} Nd5 {[%emt 0:02:21]} 30. Rxc7 Nxc7 {[%emt 0:00:01]} 31. Bc4 {[%emt 0:00:56]} Kf8 {[%emt 0:00:45]} 32. c6 {[%emt 0:00:02]} a6 {[%emt 0:00:03]} 33. Bb6 {[%emt 0:00:08]} Be5 {[%emt 0:00:14]} 34. Bxc7 {[%emt 0:00:04]} Bxc7 {[%emt 0:00:01]} 35. Bxa6 {[%emt 0:00:01]} Ke7 {[%emt 0:00:06]} 36. Bb5 {[%emt 0:00:23]} Kd6 {[%emt 0:00:03]} 37. Kg2 {[%emt 0:00:04]} Bb6 {[%emt 0:00:15]} 38. f4 {[%emt 0:00:05]} f5 {[%emt 0:00:04]} 39. Kf3 {[%emt 0:00:03]} e5 {[%emt 0:00:03]} 40. fxe5+ {[%emt 0:00:04]} Kxe5 {[%emt 0:00:01]} 41. a4 1/2-1/2

[Event "29th Czech Open-Rapid 2018"]
[Site "Pardubice"]
[Date "2018.07.18"]
[Round "2"]
[White "Illetsko, Jaroslav"]
[Black "Jazdanovs, Aleksandrs"]
[Result "0-1"]
[ECO "B52"]
[WhiteElo "2177"]
[BlackElo "2205"]
[Annotator "NA"]
[PlyCount "64"]
[EventDate "2018.07.18"]
[EventType "swiss"]
[EventCountry "CZE"]
[SourceTitle "playchess.com"]
[Source "ChessBase"]
[SourceQuality "1"]
[TimeControl "900+10"]

1. e4 {[%emt 0:00:39]} c5 {[%emt 0:00:00]} 2. Nf3 {[%emt 0:00:04]} d6 {[%emt 0:00:00]} 3. Bb5+ {[%emt 0:00:13]} Bd7 {[%emt 0:00:00]} 4. a4 {[%emt 0:00:03]} Bc6 {[%emt 0:00:18]} 5. O-O {[%emt 0:00:29]} Nf6 {[%emt 0:00:12]} 6. e5 {[%emt 0:00:43]} dxe5 {[%emt 0:00:04]} 7. Nxe5 {[%emt 0:00:04]} Qc7 {[%emt 0:00:13]} 8. Re1 {[%emt 0:02:05]} e6 {[%emt 0:00:04]} 9. h3 {[%emt 0:03:51]} Bd6 {[%emt 0:00:07]} 10. Nxc6 {[%emt 0:00:22]} Nxc6 {[%emt 0:00:07]} 11. Nc3 {[%emt 0:00:47]} O-O {[%emt 0:00:24]} 12. Bxc6 {[%emt 0:00:03]} Qxc6 {[%emt 0:00:03]} 13. d3 {[%emt 0:00:07]} c4 {[%emt 0:00:41]} 14. dxc4 {[%emt 0:00:31]} Rfd8 {[%emt 0:00:28]} 15. Qe2 {[%emt 0:00:06]} Bb4 {[%emt 0:00:10]} 16. Bd2 {[%emt 0:00:42]} Rd4 {[%emt 0:00:42]} 17. Red1 {[%emt 0:03:32]} Rxc4 {[%emt 0:00:31]} 18. Nb5 {[%emt 0:01:37]} Bxd2 {[%emt 0:01:16]} 19. Qxd2 {[%emt 0:00:05]} Rxc2 {[%emt 0:00:11]} 20. Qf4 {[%emt 0:01:05]} Nd5 {[%emt 0:01:31]} 21. Qg3 {[%emt 0:00:03]} Rxb2 {[%emt 0:00:25]} 22. Rdc1 {[%emt 0:00:32]} Rc2 {[%emt 0:00:18]} 23. Rxc2 {[%emt 0:00:29]} Qxc2 {[%emt 0:00:02]} 24. Nxa7 {[%emt 0:00:15]} Qc3 {[%emt 0:00:21]} 25. Qxc3 {[%emt 0:00:11]} Nxc3 {[%emt 0:00:01]} 26. Ra3 {[%emt 0:00:07]} Nd5 {[%emt 0:00:53]} 27. Nb5 {[%emt 0:00:05]} b6 {[%emt 0:00:15]} 28. Kf1 {[%emt 0:00:21]} g6 {[%emt 0:00:26]} 29. g3 {[%emt 0:00:10]} Nf6 {[%emt 0:00:24]} 30. Nc3 {[%emt 0:00:14]} Kf8 {[%emt 0:00:58]} 31. Rb3 {[%emt 0:00:10]} Nd7 {[%emt 0:00:01]} 32. Rb4 {[%emt 0:00:10]} Ke7 {[%emt 0:00:12]} 0-1